Cogmind - Beta 13 @@@ ROGUE MODE // 2024.07.02 @ 13:29:03 Player: AntiGoose Result: Destroyed by G-47 Trooper with Particle Gun Performance ------------- Evolutions (2) 1000 Regions Visited (3) 600 Robots Destroyed (34) 170 Value Destroyed (972) 972 Prototype IDs (2) 40 Alien Tech Used (0) 0 Bonus (0) 0 TOTAL SCORE: 2782 Bonus ------- None Cogmind --------- Core Integrity 0/550 Matter 146/300 Energy 68/100 System Corruption 0% Temperature Critical (656) Movement Core (900) Ox17 Location -8/Materials Parts ------- > --- POWER (2) -------- Nuclear Core > --- PROPULSION (2) --- (None) > --- UTILITY (4) ------ Heat Sink High-capacity Storage Unit > --- WEAPON (3) ------- Gauss Rifle Mining Claw > --- INVENTORY (20) --- Light Deuterium Engine Light Deuterium Engine Melee Analysis Suite Actuator Array Power Shielding Peak State ------------ > --- POWER ------------ Light Deuterium Engine Light Deuterium Engine > --- PROPULSION ------- Wheel > --- UTILITY ---------- Heat Sink High-capacity Storage Unit Heavy Armor Plating > --- WEAPON ----------- Particle Cannon Gauss Rifle Assault Cannon > --- INVENTORY -------- Light Deuterium Engine Nuclear Core Targeting Computer Melee Analysis Suite Actuator Array Power Shielding System Shield Mining Claw [Rating: 25] Favorites ----------- Power Light Ion Engine Engine Light Ion Engine Power Core Nuclear Core Propulsion Improved Treads Treads Improved Treads Wheel Wheel Flight Unit Cesium-ion Thruster Utility High-capacity Storage Unit Device Heat Sink Storage High-capacity Storage Unit Processor Signal Interpreter Hackware System Shield Protection Light Armor Plating Weapon Particle Cannon Energy Gun Small Laser Energy Cannon Particle Cannon Ballistic Gun Heavy Assault Rifle Ballistic Cannon Light Cannon Slashing Weapon Mining Claw Build | -11 -10 -9 -8 ------- Run | Yrd Mat Mat Mat Slots Evolved 4 | . . 2 2 Power 1 | . . . 1 Propulsion . | . . . . Utility 2 | . . 1 1 Weapon 1 | . . 1 . Parts Attached 56 | 6 13 14 23 Power 9 | 1 1 1 6 Engine 8 | 1 1 1 5 Core 1 | . . . 1 Reactor . | . . . . Propulsion 13 | 2 3 4 4 Treads 11 | 2 3 4 2 Leg . | . . . . Wheel 1 | . . . 1 Hover . | . . . . Flight 1 | . . . 1 Utility 17 | 1 4 5 7 Device 6 | . 1 4 1 Storage 3 | 1 1 1 . Processor 3 | . . . 3 Hackware 1 | . . . 1 Protection 4 | . 2 . 2 Artifact . | . . . . Weapon 17 | 2 5 4 6 Energy Gun 1 | 1 . . . Energy Cannon 5 | . 2 . 3 Ballistic Gun 7 | 1 3 2 1 Ballistic Cannon 2 | . . 1 1 Launcher . | . . . . Special Weapon . | . . . . Impact Weapon . | . . . . Slashing Weapon 2 | . . 1 1 Piercing Weapon . | . . . . Special Melee Weapon . | . . . . Unidentified Prototypes . | . . . . Parts Lost 19 | . 1 3 15 Power 3 | . . 1 2 Propulsion 5 | . . 1 4 Utility 4 | . . . 4 Weapon 7 | . 1 1 5 Highest Loss Streak 9 | . 1 1 9 To Critical Strikes 1 | . 1 . . Average Slot Usage (%) 94 | . 97 96 88 Engine 13 | . 13 10 17 Treads 20 | . 28 20 7 Device 11 | . 4 22 12 Storage 11 | . 14 11 9 Processor 2 | . . . 8 Protection 4 | . 7 . 2 Energy Cannon 13 | . 12 11 18 Ballistic Gun 10 | . 14 9 4 Ballistic Cannon 2 | . . 7 3 Naked Turns . | . . . . Heaviest Build 82 | 10 53 59 82 Greatest Support 46 | 40 46 46 43 Greatest Overweight (x) 22 | . 1 18 22 Average Overweight (x) 1 | . . 1 4 Largest Inventory Capacity 20 | 8 20 20 20 Average Capacity 18 | 7 18 20 20 Most Carried 10 | 5 8 8 10 Average Carried 5 | 3 5 5 6 Final Capacity 20 | 8 20 20 20 Final Carried 8 | 4 6 8 5 Class Distribution -------------------- 63% | Mutant 12% | Gunner 8% | Skirmisher 8% | Scavenger-Skirmisher 4% | Tank Dominant Class ---------------- Mutant | -10/Materials Mutant | -9/Materials Scavenger-Skirmisher | -8/Materials Resources | -11 -10 -9 -8 ----------- Run | Yrd Mat Mat Mat Matter Collected 993 | 235 270 219 269 Remotely . | . . . . Salvage Created 1090 | . 198 472 420 Parts 59 | . 9 35 15 Haulers Intercepted . | . . . . Recyclers Shooed 1 | . . . 1 Parts Field Recycled . | . . . . Retrieved Matter . | . . . . Parts Self-Destructed . | . . . . Prevented . | . . . . Kills | -11 -10 -9 -8 ------- Run | Yrd Mat Mat Mat Combat Hostiles Destroyed 28 | . 6 13 9 Guns 5 | . 2 1 2 Cannons 23 | . 4 12 7 Classes Destroyed 9 | . 3 2 4 Worker 1 | . . . 1 Tunneler 1 | . . . 1 Recycler 1 | . . . 1 Watcher 3 | . 1 2 . Swarmer 8 | . 2 3 3 Grunt 14 | . 4 6 4 Duelist 1 | . . 1 . Sentry 4 | . . 3 1 Hunter 1 | . . . 1 Best Kill Streak 9 | . 2 9 3 Combat Bots Only 7 | . 2 7 3 Max Kills in Single Turn 1 | . 1 1 1 Gunslinging . | . . . . Exploded . | . . . . Melee . | . . . . Uniques/NPCs Destroyed . | . . . . Combat | -11 -10 -9 -8 -------- Run | Yrd Mat Mat Mat Hostile Shots Fired 293 | . 64 56 173 Missed 64 | . 21 18 25 Damage Taken 3251 | . 464 501 2286 Core 625 | . 27 32 566 Absorbed by Shields . | . . . . Regen/Repaired (Parts) 14 | . 14 . . Core Remaining (%) 93 | 100 89 92 . Volleys Fired 120 | . 38 33 49 Largest 3 | . 2 3 3 Hottest 211 | . 91 126 211 Shots Fired 283 | . 75 87 121 Gun 97 | . 44 30 23 Cannon 186 | . 31 57 98 Launcher . | . . . . Special . | . . . . Kinetic 139 | . 44 54 41 Thermal 144 | . 31 33 80 Explosive . | . . . . Electromagnetic . | . . . . Robot Hit Streak 12 | . 5 12 11 Robot Miss Streak 6 | . 5 3 6 Penetration Max . | . . . . Secondary Targets . | . . . . Shots Hit Robots 145 | . 37 49 59 Core Hits 50 | . 9 17 24 Critical Kills . | . . . . Critical Parts Destroyed . | . . . . Critical Strikes 2 | . . 2 . Blast 2 | . . 2 . Melee Attacks 1 | . . 1 . Impact . | . . . . Slashing 1 | . . 1 . Piercing . | . . . . Sneak Attacks . | . . . . Combat Hostiles . | . . . . Follow-up Attacks . | . . . . Damage Inflicted 2917 | . 590 955 1372 Guns 762 | . 259 261 242 Cannons 2155 | . 331 694 1130 Explosions . | . . . . Melee . | . . . . Ramming . | . . . . Kinetic 1175 | . 259 527 389 Thermal 1742 | . 331 428 983 Explosive . | . . . . Electromagnetic . | . . . . Impact . | . . . . Slashing . | . . . . Piercing . | . . . . Highest Corruption . | . . . . Average Corruption . | . . . . Corruption Purged . | . . . . Corruption Blocked . | . . . . Overload Shots . | . . . . Overflow Damage 14 | . 1 8 5 Projectiles 14 | . 1 8 5 Explosions . | . . . . Melee . | . . . . Knockbacks 7 | . . 6 1 Impact . | . . . . Kinetic 7 | . . 6 1 Secondary . | . . . . Self-Inflicted Damage . | . . . . Shots . | . . . . Rammed . | . . . . Targets Rammed . | . . . . Kicked . | . . . . Crushed . | . . . . Highest Temperature 707 | . 373 218 707 Average Temperature 175 | . 131 72 246 Received Heat Transfer 1062 | . 96 165 801 Effects 42 | . 2 . 40 Shutdowns 9 | . 1 . 8 Energy Bleed 5 | . . . 5 Interference 13 | . . . 13 Matter Decay 2 | . . . 2 Short Circuit 5 | . 1 . 4 Damage (minor) 1 | . . . 1 Damage (major) 3 | . . . 3 Damage (core) 4 | . . . 4 Siege Activations . | . . . . Robots Corrupted . | . . . . Combat Hostiles . | . . . . Parts Fried . | . . . . Impact Corruptions . | . . . . Robots Melted . | . . . . Combat Hostiles . | . . . . Parts Melted 5 | . 2 . 3 Heat Transferred 3034 | . 592 777 1665 Parts Sabotaged . | . . . . Parts Stolen . | . . . . Parts Stripped . | . . . . Power Chain Reactions . | . . . . Alert | -11 -10 -9 -8 ------- Run | Yrd Mat Mat Mat Peak Influence 226 | . 93 223 226 Initial 76 | . . . 76 Average 71 | . 26 121 118 Maximum Alert Level 1 | . . 1 1 Low Security (%) 95 | 100 100 98 81 Level 1 4 | . . 1 18 Level 2 . | . . . . Level 3 . | . . . . Level 4 . | . . . . Level 5 . | . . . . High Security . | . . . . Max Security . | . . . . Squads Dispatched 5 | . 2 1 2 Investigation 2 | . . 1 1 Extermination . | . . . . Reinforcement 3 | . 2 . 1 Assault . | . . . . Garrison . | . . . . Intercept . | . . . . Searches Triggered . | . . . . Construction Impeded . | . . . . Haulers Reinforced . | . . . . Active Scanning Responses . | . . . . Cargo Convoy Interrupts . | . . . . Stealth | -11 -10 -9 -8 --------- Run | Yrd Mat Mat Mat Distress Signals 4 | . 1 1 2 Communications Jammed . | . . . . Distress Signals . | . . . . Times Spotted 58 | . 15 18 25 Peak Tracking Total 7 | . 4 5 7 Tactical Retreats 1 | . . 1 . Traps | -11 -10 -9 -8 ------- Run | Yrd Mat Mat Mat Traps Triggered 2 | . 2 . . Indirectly . | . . . . Trap Hack Attempts . | . . . . Triggered . | . . . . Disarmed . | . . . . Reprogrammed . | . . . . Reused . | . . . . Traps Extracted . | . . . . Installed . | . . . . Triggered . | . . . . Machines | -11 -10 -9 -8 ---------- Run | Yrd Mat Mat Mat Machines Disabled 2 | . . . 2 Max in Single Turn 1 | . . . 1 Machines Repaired . | . . . . Machines Dismantled . | . . . . Machines Sabotaged . | . . . . Overloaded Fab Kills . | . . . . Hacking | -11 -10 -9 -8 --------- Run | Yrd Mat Mat Mat Machines Accessed 9 | . 4 4 1 Terminals 6 | . 2 3 1 Fabricators . | . . . . Repair Stations 1 | . 1 . . Recycling Units 2 | . 1 1 . Scanalyzers . | . . . . Garrison Access . | . . . . Total Hacks 25 | . 9 13 3 Successful 16 | . 9 6 1 Failed 9 | . . 7 2 Catastrophic 2 | . . 1 1 Database Lockouts . | . . . . Manual 1 | . . 1 . Terminals 14 | . 3 8 3 Fabricators . | . . . . Repair Stations 3 | . 3 . . Recycling Units 8 | . 3 5 . Scanalyzers . | . . . . Garrison Access . | . . . . Terminal Hacks 6 | . 3 2 1 Record 4 | . 2 1 1 Prototype ID Bank 1 | . . 1 . Unreport Threat 1 | . 1 . . Fabricator Hacks . | . . . . Repair Station Hacks 3 | . 3 . . Scan Component 2 | . 2 . . Repair 1 | . 1 . . Recycling Unit Hacks 7 | . 3 4 . Recycle Component 2 | . 1 1 . Process 1 | . . 1 . Report Inventory 2 | . 1 1 . Retrieve Matter 1 | . . 1 . Retrieve Components 1 | . 1 . . Scanalyzer . | . . . . Garrison Access Hacks . | . . . . Unauthorized Hacks . | . . . . Terminals . | . . . . Fabricators . | . . . . Repair Stations . | . . . . Recycling Units . | . . . . Scanalyzers . | . . . . Garrison Access . | . . . . Data Cores Recovered . | . . . . Used . | . . . . Hacking Detections 7 | . 2 4 1 Full Trace Events 2 | . . 1 1 Feedback Events . | . . . . Feedback Blocked . | . . . . Robot Schematics Acquired . | . . . . Robots Built . | . . . . Authchips . | . . . . Time . | . . . . Total Robot Build Rating . | . . . . Part Schematics Acquired . | . . . . Parts Built . | . . . . Authchips . | . . . . Time . | . . . . Total Part Build Rating . | . . . . Parts Repaired 1 | . 1 . . Time 26 | . 26 . . Parts Recycled 2 | . 1 1 . Recycled Matter 42 | . . 42 . Retrieved Matter 42 | . . 42 . Retrieved Components 7 | . 7 . . Parts Scanalyzed . | . . . . Part Schematics Acquired . | . . . . Parts Damaged . | . . . . Bothacking | -11 -10 -9 -8 ------------ Run | Yrd Mat Mat Mat Used RIF Installer . | . . . . Robots Hacked . | . . . . Non-combat . | . . . . Combat . | . . . . Robot Hacks Applied . | . . . . Relay Couplers Released . | . . . . Fabnet Peak Effective % . | . . . . Robots Rewired . | . . . . Allies Hacked . | . . . . Hacks Repelled . | . . . . Allies | -11 -10 -9 -8 -------- Run | Yrd Mat Mat Mat Total Allies . | . . . . Largest Group . | . . . . Highest-Rated Group . | . . . . Highest-Rated Ally . | . . . . Total Orders . | . . . . Ally Attacks . | . . . . Total Damage . | . . . . Kills . | . . . . Allies Corrupted . | . . . . Allies Melted . | . . . . Intel | -11 -10 -9 -8 ------- Run | Yrd Mat Mat Mat Robot Analysis Total . | . . . . Derelict Logs Recovered . | . . . . Drone Launches . | . . . . Drone Recoveries . | . . . . Exploration | -11 -10 -9 -8 ------------- Run | Yrd Mat Mat Mat Turns Passed 2912 | 221 1249 788 654 Spaces Moved 1025 | 115 473 262 175 Core 17 | 13 . 2 2 Treads 916 | 102 473 260 81 Legs . | . . . . Wheels 83 | . . . 83 Hover . | . . . . Flight 9 | . . . 9 Fastest Speed 50 | 50 160 240 170 Average Speed 230 | 147 226 246 270 Slowest Speed 1150 | 160 240 950 1150 Overloaded Moves . | . . . . Propulsion Burnouts . | . . . . Robots Hopped . | . . . . Cave-ins Triggered . | . . . . Exploration Rate (%) 27 | 8 64 17 22 Regions Visited 3 Branch Regions . Pre-discovered Areas . | . . . . Known Exits Taken . | . . . . Unknown Exits Taken 3 | 1 1 1 . Scrap Searched . | . . . . Spaces Dug 1 | . . 1 . Terrain Destroyed 12 | . . 1 11 Melee 1 | . . 1 . Projectile 11 | . . . 11 AOE . | . . . . Terrain Rammed . | . . . . Walls Destroyed . | . . . . Machines Disabled . | . . . . Actions | -11 -10 -9 -8 --------- Run | Yrd Mat Mat Mat Total 1357 | 166 585 335 271 Wait 67 | 36 27 4 . Move 1022 | 114 472 261 175 Hop . | . . . . Pick Up 60 | 10 19 15 16 Fast Attach . | . . . . Attach 46 | 6 13 12 15 Detach 7 | . 3 3 1 Swap 10 | . . 2 8 Drop 24 | . 13 4 7 Fire 120 | . 38 33 49 Melee 1 | . . 1 . Ram . | . . . . Kick . | . . . . Crush . | . . . . Escape Stasis . | . . . . Rewire . | . . . . Trap . | . . . . Miscellaneous . | . . . . Route ------- -11/Scrapyard -10/Materials (discovered 2 exits: *Mat x2) -9/Materials -8/Materials History --------- Turn | Location | Event 6 | -11/Scrapyard | Discovered new exit (range 16) 222 | -11/Scrapyard | Entered Materials 311 | -10/Materials | Build established: Mutant 814 | -10/Materials | Repaired Lgt. Ion Engine 1088 | -10/Materials | Discovered new exit (range 10) 1447 | -10/Materials | Discovered new exit (range 11) 1471 | -10/Materials | Entered another Materials area 1471 | -9/Materials | Evolved 2 slots: Utility x1, Weapon x1 1943 | -9/Materials | Destroyed 7 combat bots 2230 | -9/Materials | Discovered new exit (range 4) 2259 | -9/Materials | Entered another Materials area 2259 | -8/Materials | Evolved 2 slots: Power x1, Utility x1 2581 | -8/Materials | Lost 5 parts (1p2n1u1w) 2896 | -8/Materials | Core integrity fell below 50% 2906 | -8/Materials | Core integrity fell below 20% 2913 | -8/Materials | Destroyed by G-47 Trooper with Particle Gun Last Messages --------------- Power failure, Lgt. Deuterium Engine shutdown. Wheel destroyed. Overheating: Energy bleed (-18). K-01 Serf collects debris. Power failure, Lgt. Deuterium Engine shutdown. Particle Cannon destroyed. Gauss Rifle broken. Overheating: Short circuit. Penetrated by Slug. K-01 Serf collects debris. Nuclear Core broken. Overheating: Short circuit. Overheating: System interference. Assault Cannon temporarily disabled. Assault Cannon destroyed. Overheating: Core damaged (-71). Lgt. Deuterium Engine destroyed. System Shield destroyed. Overheating: Energy bleed (-21). R-06 Scavenger collects Flight Unit. Map ----- +----------------------------------------------------+ | | | | | ????????????????????????????????? | | ????????????????????????????????? | | ????????????????????????????????? | | ????????????????????????????????? | | ????????????????????????????????? | | ????????????????????????????????? | | ????????????????????????????????? | | ????????????????????????????????? | | ????????????????????????????????? | | ????????????????????????????????? | | ????????????????????????????????? | | ????????????????????????????????? | | ????????????????????????????????? | | ????????????????????????????????? | | ????????????????????????????????? | | ????????????????????????????????? | | ???????????????#????????????????? | | ?????????????? #????????????????? | | ????????????? #????????????????? | | ????######## #????????????????? | | ????# ;#r #????????????????? | | ????# g%k #????????????????? | | ????# hg%k #????????????# # | | ????# @ s[% #????????????+ | | ????# ##+###????????????# # | | ????### ;;#?????????????????????? | | ####### ###?????????????????????? | | # ** # #???????????????????????? | | # ** # #???????????????????????? | | # * # ######??????????????????? | | # # #??###########?????? | | #! ! + #??# #?????? | | # # #??# #?????? | | ####+## #??# #?????? | | ???# #??# #?????? | | ???# ###### #??# !! #?????? | | ???# #????# #??# ! #?????? | | ???# #????# #??# ! #?????? | | ???# #????# #??# #??###? | | ???#+###### #??#####+########### | | ???# # #?????# + | | ???# *** # ####### #### | | ???# *** + #??# "" | | ???# * * ########## #??# T" | | ???# * #????????# #??# "" | | ???# #????????# #??# * | | ???########????????# #######+## | | ???????????????????# % | +----------------------------------------------------+ Best States ------------- Heat Dissipation 41 Energy Generation 23 Energy Capacity 440 Matter Stores 300 Matter Capacity 300 Sight Range 16 Robot Scan Range 14 Terrain Scan Density 10 Armor Coverage 600 Evasion (%) 40 Targeting Accuracy 5 Recoil Reduction 2 Defensive Hacking 10 Item Schematics ----------------- None Robot Schematics ------------------ None Fabricated ------------ Nothing Alien Tech Used ----------------- None Achievements -------------- Everything Is Under Control Challenges ------------ None Game ------ Seed WeightHypercooledBrace Manual? 0 Play Time 00:32:46 Cumulative 2.0 hours Start 2024.07.02 @ 12:57:50 End 2024.07.02 @ 13:29:03 Sessions 1 Manual Loads 0 Difficulty Rogue Special Mode None Game No. 5 Rogue 2 Adventurer 3 Explorer 0 Win Type - Total 0 Types 0/0/0/0/0/0/0/0/0 Lore% 5 Gallery% 6 Achievement% 5 Wizard Run 0 Options --------- Layout 1 ASCII 0 Keyboard 0 Movement Mouse Keybinds 0 Fullscreen 1 Font 32/SmallcapsGlow Map View 50x35 Zoom Use 0% Tactical HUD 0 Map Filters NONE Filters NONE Steam 1 RUN: 8120ac19-30f1-4c44-bb1f-60492a72b693